fUSD/lending_fUSD_20240805
["ID","MTS","AMOUNT","RATE_DAILY","PERIOD"]
[334221484,1722844175338,-500.0,0.00044383,60]
[334221485,1722844175387,-500.0,0.00044383,60]
[334221486,1722844175434,-576.41,0.00044383,60]
[334221487,1722844175483,-500.0,0.00044383,60]
[334221488,1722844175533,-500.0,0.00044383,60]
[334221489,1722844175579,-500.0,0.00044383,60]
[334221490,1722844175625,-500.0,0.00044383,60]
[334221491,1722844175670,-500.0,0.00044383,60]
[334221492,1722844175714,-385.44174982,0.00044383,60]
[334221493,1722844175760,-1009.49,0.00044383,60]
[334221494,1722844175808,-2105.43,0.00044383,60]
[334221495,1722844175854,-500.0,0.00044383,60]
[334221496,1722844175901,-500.0,0.00044383,60]
[334221497,1722844175942,-585.87,0.00044383,60]
[334221498,1722844175982,-500.0,0.00044383,60]
[334221499,1722844176024,-1492.65,0.00044383,60]
[334221500,1722844176064,-1286.6,0.00044383,60]
[334221501,1722844176105,-1984.69,0.00044383,60]
[334221502,1722844176146,-500.0,0.00044383,60]
[334221503,1722844176186,-500.0,0.00044383,60]
[334221504,1722844176226,-500.0,0.00044383,60]
[334221505,1722844176264,-1639.94,0.00044383,60]
[334221506,1722844176307,-2105.98,0.00044383,60]
[334221507,1722844176345,-1249.4,0.00044383,60]
[334221508,1722844176385,-500.0,0.00044383,60]
[334221509,1722844176425,-1170.05,0.00044383,60]
[334221510,1722844176465,-962.27,0.00044383,60]
[334221511,1722844176504,-2483.31,0.00044383,60]
[334221512,1722844176548,-1643.1,0.00044383,60]
[334221513,1722844176588,-1511.13,0.00044383,60]
[334221514,1722844176630,-2956.4,0.00044383,60]
[334221515,1722844176672,-500.0,0.00044383,60]
[334221516,1722844176711,-500.0,0.00044383,60]
[334221517,1722844176751,-1504.27,0.00044383,60]
[334221518,1722844176795,-754.33,0.00044383,60]
[334221519,1722844176834,-1298.6,0.00044383,60]
[334221520,1722844176873,-500.0,0.00044383,60]
[334221521,1722844176911,-500.0,0.00044383,60]
[334221522,1722844176950,-500.0,0.00044383,60]
[334221523,1722844176989,-505.62149621,0.00044383,60]
[334221524,1722844177028,-722.49,0.00044383,60]
[334221525,1722844177067,-3521.35,0.00044383,60]
[334221526,1722844177107,-502.61249075,0.00044383,60]
[334221527,1722844177148,-1043.13,0.00044383,60]
[334221528,1722844177189,-506.17434331,0.00044383,60]
[334221529,1722844177227,-500.0,0.00044383,60]
[334221530,1722844177266,-936.69,0.00044383,60]
[334221531,1722844177308,-500.0,0.00044383,60]
[334221532,1722844177347,-2164.97,0.00044383,60]
[334221533,1722844177389,-504.07,0.00044383,60]
[334221534,1722844177428,-1861.15,0.00044383,60]
[334221535,1722844177467,-500.0,0.00044383,60]
[334221536,1722844177506,-265.48173356,0.00044383,60]
[334221537,1722844177547,-4515.22,0.00044383,60]
[334221538,1722844177585,-500.0,0.00044383,60]
[334221539,1722844177623,-500.0,0.00044383,60]
[334221540,1722844177660,-1258.84,0.00044383,60]
[334221541,1722844177697,-776.86,0.00044383,60]
[334221542,1722844177735,-500.0,0.00044383,60]
[334221543,1722844177780,-500.0,0.00044383,60]
[334221544,1722844177821,-859.54,0.00044383,60]
[334221545,1722844177861,-1478.25,0.00044383,60]
[334221546,1722844178119,-513.56,0.00044383,60]
[334221547,1722844178164,-970.46,0.00044383,60]
[334221548,1722844178202,-585.63,0.00044383,60]
[334221549,1722844178239,-500.0,0.00044383,60]
[334221550,1722844178280,-936.94,0.00044383,60]
[334221551,1722844178317,-705.37,0.00044383,60]
[334221552,1722844178352,-1195.43,0.00044383,60]
[334221553,1722844178391,-1968.5,0.00044383,60]
[334221554,1722844178427,-500.0,0.00044383,60]
[334221555,1722844178466,-2221.06,0.00044383,60]
[334221556,1722844178505,-1495.03,0.00044383,60]
[334221557,1722844178547,-3474.81,0.00044383,60]
[334221558,1722844178584,-1252.99,0.00044383,60]
[334221559,1722844178622,-631.95,0.00044383,60]
[334221560,1722844178659,-1500.6,0.00044383,60]
[334221561,1722844178697,-1569.23,0.00044383,60]
[334221562,1722844178736,-3329.16,0.00044383,60]
[334221563,1722844178779,-500.0,0.00044383,60]
[334221564,1722844178819,-500.0,0.00044383,60]
[334221565,1722844178860,-500.0,0.00044383,60]
[334221566,1722844178900,-500.0,0.00044383,60]
[334221567,1722844178940,-806.66,0.00044383,60]
[334221568,1722844178979,-500.0,0.00044383,60]
[334221569,1722844179018,-3499.13,0.00044383,60]
[334221570,1722844179063,-500.0,0.00044383,60]
[334221571,1722844179103,-500.0,0.00044383,60]
[334221572,1722844179142,-500.0,0.00044383,60]
[334221573,1722844179183,-3090.85,0.00044383,60]
[334221574,1722844179222,-500.0,0.00044383,60]
[334221575,1722844179259,-1026.49,0.00044383,60]
[334221576,1722844179300,-2889.59,0.00044383,60]
[334221577,1722844179341,-500.0,0.00044383,60]
[334221578,1722844179381,-500.0,0.00044383,60]
[334221579,1722844179420,-3582.16,0.00044383,60]
[334221580,1722844179461,-1190.05,0.00044383,60]
[334221581,1722844179499,-804.29,0.00044383,60]
[334221582,1722844179536,-648.35,0.00044383,60]
[334221583,1722844179574,-1012.27,0.00044383,60]
[334221584,1722844179611,-500.0,0.00044383,60]
[334221585,1722844179650,-2656.27,0.00044383,60]
[334221586,1722844179689,-3334.46,0.00044383,60]
[334221587,1722844179725,-500.0,0.00044383,60]
[334221588,1722844179762,-2000.0,0.00044383,60]
[334221589,1722844179802,-1816.19,0.00044383,60]
[334221590,1722844179840,-500.0,0.00044383,60]
[334221591,1722844179883,-500.0,0.00044383,60]
[334221592,1722844179931,-500.0,0.00044383,60]
[334221593,1722844179977,-1419.38,0.00044383,60]
[334221594,1722844180024,-1205.65,0.00044383,60]
[334221595,1722844180067,-960.05,0.00044383,60]
[334221596,1722844180110,-2829.69,0.00044383,60]
[334221597,1722844180151,-501.39343895,0.00044383,60]
[334221598,1722844180192,-1249.16,0.00044383,60]
[334221599,1722844180230,-500.0,0.00044383,60]
[334221600,1722844180267,-1429.17,0.00044383,60]
[334221601,1722844180309,-2102.16,0.00044383,60]
[334221602,1722844180346,-1239.51,0.00044383,60]
[334221603,1722844180384,-500.0,0.00044383,60]
[334221604,1722844180421,-500.0,0.00044383,60]
[334221605,1722844180457,-1591.86,0.00044383,60]
[334221606,1722844180494,-621.71,0.00044383,60]
[334221607,1722844180530,-2254.38,0.00044383,60]
[334221608,1722844180567,-602.16,0.00044383,60]
[334221609,1722844180603,-1444.06,0.00044383,120]
[334221610,1722844180639,-540.84,0.00044383,60]
[334221611,1722844180675,-2796.97,0.00044383,60]
[334221612,1722844180713,-568.86,0.00044383,60]
[334221613,1722844180750,-500.0,0.00044383,60]
[334221614,1722844180788,-1381.56,0.00044383,60]
[334221615,1722844180826,-500.0,0.00044383,60]
[334221616,1722844180863,-990.25,0.00044383,60]
[334221617,1722844180900,-627.42,0.00044383,60]
[334221618,1722844180939,-3059.77,0.00044383,60]
[334221619,1722844180978,-1387.53,0.00044383,60]
[334221620,1722844181017,-500.0,0.00044383,60]
[334221621,1722844181061,-565.13904479,0.00044383,60]
[334221622,1722844181102,-1284.45,0.00044383,60]
[334221623,1722844181143,-2164.6,0.00044383,60]
[334221624,1722844181182,-1060.48,0.00044383,60]
[334221625,1722844181220,-1495.86,0.00044383,60]
[334221626,1722844181259,-780.62,0.00044383,60]
[334221627,1722844181303,-500.0,0.00044383,60]
[334221628,1722844181340,-500.0,0.00044383,60]
[334221629,1722844181379,-4606.13,0.00044383,60]
[334221630,1722844181420,-579.6,0.00044383,60]
[334221631,1722844181458,-738.94,0.00044383,60]
[334221632,1722844181496,-519.54,0.00044383,60]
[334221633,1722844181535,-500.0,0.00044383,60]
[334221634,1722844181571,-648.7,0.00044383,60]
[334221635,1722844181608,-1716.06,0.00044383,60]
[334221636,1722844181648,-1963.93,0.00044383,60]
[334221637,1722844181687,-1163.31,0.00044383,60]
[334221638,1722844181726,-3883.3,0.00044383,60]
[334221639,1722844181764,-487.12385719,0.00044383,60]
[334221640,1722844181811,-900.66,0.00044383,60]
[334221641,1722844181850,-500.87547784,0.00044383,60]
[334221642,1722844181889,-1444.52,0.00044383,60]
[334221643,1722844181927,-500.0,0.00044383,60]
[334221644,1722844181967,-1825.76,0.00044383,60]
[334221645,1722844182015,-991.12,0.00044383,60]
[334221646,1722844182064,-1271.73,0.00044383,60]
[334221647,1722844182106,-500.0,0.00044383,60]
[334221648,1722844182145,-500.0,0.00044383,60]
[334221649,1722844182404,-500.0,0.00044383,60]
[334221650,1722844182446,-776.44,0.00044383,60]
[334221651,1722844182486,-500.0,0.00044383,60]
[334221652,1722844182533,-506.25205104,0.00044383,60]
[334221653,1722844182574,-557.25,0.00044383,60]
[334221654,1722844182614,-500.0,0.00044383,60]
[334221655,1722844182653,-500.0,0.00044383,60]
[334221656,1722844182691,-781.71,0.00044383,60]
[334221657,1722844182731,-2245.48,0.00044383,60]
[334221658,1722844182772,-2495.7,0.00044383,60]
[334221659,1722844182812,-500.0,0.00044383,60]
[334221660,1722844182853,-3163.86,0.00044383,60]
[334221661,1722844182894,-1479.42,0.00044383,60]
[334221662,1722844182933,-2335.18,0.00044383,60]
[334221663,1722844182974,-500.0,0.00044383,60]
[334221664,1722844183015,-2512.24,0.00044383,60]
[334221665,1722844183069,-500.0,0.00044383,60]
[334221666,1722844183110,-500.0,0.00044383,60]
[334221667,1722844183149,-500.0,0.00044383,60]
[334221668,1722844183188,-505.71820022,0.00044383,60]
[334221669,1722844183227,-500.0,0.00044383,60]
[334221670,1722844183264,-1318.12,0.00044383,60]
[334221671,1722844183301,-2546.71,0.00044383,60]
[334221672,1722844183340,-2643.24,0.00044383,60]
[334221673,1722844183380,-500.0,0.00044383,60]
[334221674,1722844183419,-3011.57,0.00044383,60]
[334221675,1722844183460,-495.756213,0.00044383,60]
[334221676,1722844183499,-827.48,0.00044383,60]
[334221677,1722844183540,-500.0,0.00044383,60]
[334221678,1722844183582,-10089.31,0.00044383,60]
[334221679,1722844183621,-300.0,0.00044383,60]
[334221680,1722844183662,-500.0,0.00044383,60]
[334221681,1722844183699,-599.73729514,0.00044383,60]
[334221682,1722844183738,-500.0,0.00044383,60]
[334221683,1722844183778,-500.0,0.00044383,60]
[334221684,1722844183820,-500.0,0.00044383,60]
[334221685,1722844183862,-500.0,0.00044383,60]
[334221686,1722844183903,-500.0,0.00044383,60]
[334221687,1722844183944,-500.0,0.00044383,60]
[334221688,1722844183987,-2761.8,0.00044383,60]
[334221689,1722844184029,-875.89,0.00044383,60]
[334221690,1722844184070,-500.0,0.00044383,60]
[334221691,1722844184110,-909.27,0.00044383,60]
[334221692,1722844184152,-500.0,0.00044383,60]
[334221693,1722844184193,-1834.13,0.00044383,60]
[334221694,1722844184234,-500.0,0.00044383,60]
[334221695,1722844184276,-500.0,0.00044383,60]
[334221696,1722844184315,-1594.18,0.00044383,60]
[334221697,1722844184354,-904.65,0.00044383,60]
[334221698,1722844184392,-500.0,0.00044383,60]
[334221699,1722844184433,-500.0,0.00044383,60]
[334221700,1722844184472,-500.0,0.00044383,60]
[334221701,1722844184510,-1166.66,0.00044383,60]
[334221702,1722844184547,-500.0,0.00044383,60]
[334221703,1722844184585,-3601.46,0.00044383,60]
[334221704,1722844184623,-927.02,0.00044383,60]
[334221705,1722844184664,-3723.72,0.00044383,60]
[334221706,1722844184701,-5377.57,0.00044383,60]
[334221707,1722844184740,-23612.73,0.00044383,60]
[334221708,1722844184778,-500.0,0.00044383,60]
[334221709,1722844184817,-500.0,0.00044383,60]
[334221710,1722844184856,-2267.85,0.00044383,60]
[334221711,1722844184894,-509.03388673,0.00044383,60]
[334221712,1722844184932,-500.0,0.00044383,60]
[334221713,1722844184970,-1760.51,0.00044383,60]
[334221714,1722844185008,-510.24794172,0.00044383,60]
[334221715,1722844185054,-2589.98,0.00044383,60]
[334221716,1722844185097,-505.36832359,0.00044383,60]
[334221717,1722844185147,-856.68,0.00044383,60]
[334221718,1722844185188,-2428.43,0.00044383,60]
[334221719,1722844185230,-6443.39,0.00044383,60]
[334221720,1722844185271,-844.83,0.00044383,60]
[334221721,1722844185310,-1790.38,0.00044383,60]
[334221722,1722844185349,-500.0,0.00044383,60]
[334221723,1722844185389,-1239.85,0.00044383,60]
[334221724,1722844185428,-500.0,0.00044383,60]
[334221725,1722844185470,-2135.68,0.00044383,60]
[334221726,1722844185511,-7781.8,0.00044383,60]
[334221727,1722844185555,-500.0,0.00044383,60]
[334221728,1722844185594,-500.0,0.00044383,60]
[334221729,1722844185635,-500.0,0.00044383,60]
[334221730,1722844185675,-3762.63,0.00044383,60]
[334221731,1722844185714,-12434.34,0.00044383,60]
[334221732,1722844185752,-500.0,0.00044383,60]
[334221733,1722844185791,-500.0,0.00044383,60]
[334221734,1722844185829,-29175.13,0.00044383,60]
[334221735,1722844185868,-2229.68,0.00044383,60]
[334221736,1722844185906,-1702.7,0.00044383,60]
[334221737,1722844185944,-3079.71,0.00044383,60]
[334221738,1722844185986,-2685.43,0.00044383,60]
[334221739,1722844186029,-12156.11,0.00044383,60]
[334221740,1722844186074,-676.45,0.00044383,60]
[334221741,1722844186115,-500.0,0.00044383,60]
[334221742,1722844186155,-500.0,0.00044383,60]
[334221743,1722844186194,-11527.03,0.00044383,60]
[334221744,1722844186233,-2942.99,0.00044383,60]
[334221745,1722844186270,-5533.89,0.00044383,60]
[334221746,1722844186307,-500.0,0.00044383,60]
[334221747,1722844186344,-1147.24,0.00044383,60]
[334221748,1722844186382,-500.0,0.00044383,60]
[334221749,1722844186423,-500.0,0.00044383,60]
[334221750,1722844186466,-500.0,0.00044383,60]
[334221751,1722844186506,-966.49,0.00044383,60]
[334221752,1722844186545,-7052.9,0.00044383,60]
[334221753,1722844186804,-500.0,0.00044383,60]
[334221754,1722844186845,-500.0,0.00044383,60]
[334221755,1722844186889,-1533.46,0.00044383,60]
[334221756,1722844186934,-1600.86,0.00044383,60]
[334221757,1722844186979,-500.0,0.00044383,60]
[334221758,1722844187021,-2844.29,0.00044383,60]
[334221759,1722844187060,-500.0,0.00044383,60]
[334221760,1722844187101,-4113.34,0.00044383,60]
[334221761,1722844187141,-1215.01,0.00044383,60]
[334221762,1722844187183,-1182.78,0.00044383,60]
[334221763,1722844187220,-500.0,0.00044383,60]
[334221764,1722844187256,-7563.74,0.00044383,60]
[334221765,1722844187296,-885.81,0.00044383,60]
[334221766,1722844187335,-2342.88,0.00044383,60]
[334221767,1722844187378,-533.58,0.00044383,60]
[334221768,1722844187425,-600.6,0.00044383,60]
[334221769,1722844187462,-500.0,0.00044383,60]
[334221770,1722844187507,-2470.61,0.00044383,60]
[334221771,1722844187548,-1107.73,0.00044383,60]
[334221772,1722844187594,-3795.26,0.00044383,60]
[334221773,1722844187633,-623.25,0.00044383,60]
[334221774,1722844187674,-533.77042869,0.00044383,60]
[334221775,1722844187717,-2147.31,0.00044383,60]
[334221776,1722844187766,-11685.73,0.00044383,60]
[334221777,1722844187817,-500.0,0.00044383,60]
[334221778,1722844187866,-658.81,0.00044383,60]
[334221779,1722844187915,-4333.16,0.00044383,60]
[334221780,1722844187959,-500.0,0.00044383,60]
[334221781,1722844188005,-500.0,0.00044383,60]
[334221782,1722844188055,-3360.52,0.00044383,60]
[334221783,1722844188103,-2451.49,0.00044383,60]
[334221784,1722844188146,-2337.27,0.00044383,60]
[334221785,1722844188189,-5093.48,0.00044383,60]
[334221786,1722844188231,-780.37,0.00044383,60]
[334221787,1722844188269,-1845.9,0.00044383,60]
[334221788,1722844188306,-1210.22,0.00044383,60]
[334221789,1722844188344,-1970.75,0.00044383,60]
[334221790,1722844188383,-500.0,0.00044383,60]
[334221791,1722844188431,-500.0,0.00044383,60]
[334221792,1722844188473,-500.0,0.00044383,60]
[334221793,1722844188515,-2131.79,0.00044383,60]
[334221794,1722844188554,-817.97,0.00044383,60]
[334221795,1722844188592,-1931.56,0.00044383,60]
[334221796,1722844188633,-16403.65,0.00044383,60]
[334221797,1722844188672,-1282.11,0.00044383,60]
[334221798,1722844188711,-500.0,0.00044383,60]
[334221799,1722844188750,-1001.83,0.00044383,60]
[334221800,1722844188788,-500.0,0.00044383,60]
[334221801,1722844188826,-587.76,0.00044383,60]
[334221802,1722844188866,-6034.41,0.00044383,60]
[334221803,1722844188904,-500.0,0.00044383,60]
[334221804,1722844188944,-500.0,0.00044383,60]
[334221805,1722844188984,-809.03,0.00044383,60]
[334221806,1722844189026,-979.75,0.00044383,60]
[334221807,1722844189093,-1311.26,0.00044383,60]
[334221808,1722844189142,-500.0,0.00044383,60]
[334221809,1722844189184,-500.0,0.00044383,60]
[334221810,1722844189227,-500.0,0.00044383,60]
[334221811,1722844189270,-500.0,0.00044383,60]
[334221812,1722844189311,-5522.16,0.00044383,60]
[334221813,1722844189352,-2782.82,0.00044383,60]
[334221814,1722844189393,-4237.06,0.00044383,60]
[334221815,1722844189434,-1443.28,0.00044383,60]
[334221816,1722844189474,-500.0,0.00044383,60]
[334221817,1722844189513,-4203.96,0.00044383,60]
[334221818,1722844189552,-500.0,0.00044383,60]
[334221819,1722844189594,-1207.51,0.00044383,60]
[334221820,1722844189636,-500.0,0.00044383,60]
[334221821,1722844189678,-648.98,0.00044383,60]
[334221822,1722844189720,-1043.74,0.00044383,60]
[334221823,1722844189763,-7649.72,0.00044383,60]
[334221824,1722844189807,-4279.22,0.00044383,60]
[334221825,1722844189855,-4848.54,0.00044383,60]
[334221826,1722844189899,-407.03342341,0.00044383,60]
[334221827,1722844189942,-500.0,0.00044383,60]
[334221828,1722844189984,-1091.71,0.00044383,60]
[334221829,1722844190025,-500.0,0.00044383,60]
[334221830,1722844190066,-501.92281828,0.00044383,60]
[334221831,1722844190108,-1603.88,0.00044383,60]
[334221832,1722844190149,-724.93,0.00044383,60]
[334221833,1722844190191,-500.0,0.00044383,60]
[334221834,1722844190232,-3030.88,0.00044383,60]
[334221835,1722844190275,-2492.89,0.00044383,60]
[334221836,1722844190317,-500.0,0.00044383,60]
[334221837,1722844190357,-500.0,0.00044383,60]
[334221838,1722844190401,-500.0,0.00044383,60]
[334221839,1722844190443,-2806.39,0.00044383,60]
[334221840,1722844190487,-5187.62,0.00044383,60]
[334221841,1722844190526,-4337.32,0.00044383,60]
[334221842,1722844190565,-3047.68,0.00044383,60]
[334221843,1722844190603,-1406.83,0.00044383,60]
[334221844,1722844190642,-500.0,0.00044383,60]
[334221845,1722844190680,-501.28300165,0.00044383,60]
[334221846,1722844190720,-211.55632178,0.00044383,60]
[334221847,1722844190759,-500.0,0.00044383,60]
[334221848,1722844190799,-3751.26,0.00044383,60]
[334221849,1722844190839,-500.77972512,0.00044383,60]
[334221850,1722844190880,-3262.95,0.00044383,60]
[334221851,1722844190920,-500.0,0.00044383,60]
[334221852,1722844190961,-8978.52,0.00044383,60]
[334221853,1722844191002,-2169.05,0.00044383,60]
[334221854,1722844191042,-551.30030351,0.00044383,60]
[334221855,1722844191083,-2712.85,0.00044383,60]
[334221856,1722844191340,-25334.1,0.00044383,60]
[334221857,1722844191391,-2362.58,0.00044383,60]
[334221858,1722844191431,-503.62555641,0.00044383,60]
[334221859,1722844191471,-500.0,0.00044383,60]
[334221860,1722844191511,-774.42,0.00044383,60]
[334221861,1722844191549,-2055.64,0.00044383,60]
[334221862,1722844191588,-500.0,0.00044383,60]
[334221863,1722844191626,-500.0,0.00044383,60]
[334221864,1722844191665,-953.05,0.00044383,60]
[334221865,1722844191704,-500.0,0.00044383,60]
[334221866,1722844191743,-592.17,0.00044383,60]
[334221867,1722844191784,-5633.77,0.00044383,60]
[334221868,1722844191823,-500.0,0.00044383,60]
[334221869,1722844191864,-4804.66,0.00044383,60]
[334221870,1722844191904,-500.0,0.00044383,60]
[334221871,1722844191945,-500.0,0.00044383,60]
[334221872,1722844191984,-1844.98,0.00044383,60]
[334221873,1722844192024,-500.0,0.00044383,60]
[334221874,1722844192066,-2404.07,0.00044383,60]
[334221875,1722844192107,-500.0,0.00044383,60]
[334221876,1722844192156,-889.29,0.00044383,60]
[334221877,1722844192200,-563.7,0.00044383,60]
[334221878,1722844192241,-500.0,0.00044383,60]
[334221879,1722844192280,-1452.56,0.00044383,60]
[334221880,1722844192319,-2837.34,0.00044383,60]
[334221881,1722844192365,-1383.25,0.00044383,60]
[334221882,1722844192406,-762.26,0.00044383,60]
[334221883,1722844192448,-304.8757196,0.00044383,60]
[334221884,1722844192486,-500.0,0.00044383,60]
[334221885,1722844192525,-26982.14,0.00044383,60]
[334221886,1722844192571,-1636.8,0.00044383,60]
[334221887,1722844192609,-1626.31,0.00044383,60]
[334221888,1722844192648,-7321.46,0.00044383,60]
[334221889,1722844192688,-500.0,0.00044383,60]
[334221890,1722844192725,-500.0,0.00044383,60]
[334221891,1722844192764,-19915.03,0.00044383,60]
[334221892,1722844192803,-1943.98,0.00044383,60]
[334221893,1722844192842,-500.0,0.00044383,60]
[334221894,1722844192880,-500.0,0.00044383,60]
[334221895,1722844192919,-500.0,0.00044383,60]
[334221896,1722844192958,-1832.2,0.00044383,60]
[334221897,1722844192997,-500.0,0.00044383,60]
[334221898,1722844193037,-3461.41,0.00044383,60]
[334221899,1722844193089,-3266.94,0.00044383,60]
[334221900,1722844193138,-500.0,0.00044383,60]
[334221901,1722844193180,-2283.58,0.00044383,60]
[334221902,1722844193219,-3881.78,0.00044383,60]
[334221903,1722844193256,-1444.46,0.00044383,60]
[334221904,1722844193294,-500.0,0.00044383,60]
[334221905,1722844193332,-500.0,0.00044383,60]
[334221906,1722844193371,-500.0,0.00044383,60]
[334221907,1722844193409,-500.0,0.00044383,60]
[334221908,1722844193448,-4891.1,0.00044383,60]
[334221909,1722844193486,-688.93,0.00044383,60]
[334221910,1722844193523,-500.0,0.00044383,60]
[334221911,1722844193580,-9070.21,0.00044383,60]
[334221912,1722844193621,-1375.72,0.00044383,60]
[334221913,1722844193661,-7616.7,0.00044383,60]
[334221914,1722844193701,-500.0,0.00044383,60]
[334221915,1722844193743,-508.91880738,0.00044383,60]
[334221916,1722844193785,-504.90311026,0.00044383,60]
[334221917,1722844193828,-1059.45,0.00044383,60]
[334221918,1722844193868,-2351.5,0.00044383,60]
[334221919,1722844193910,-1062.04,0.00044383,60]
[334221920,1722844193952,-500.0,0.00044383,60]
[334221921,1722844193993,-1299.44,0.00044383,60]
[334221922,1722844194037,-571.28,0.00044383,60]
[334221923,1722844194090,-500.0,0.00044383,60]
[334221924,1722844194135,-1764.44,0.00044383,60]
[334221925,1722844194180,-2213.87,0.00044383,60]
[334221926,1722844194223,-643.06,0.00044383,60]
[334221927,1722844194263,-1594.4,0.00044383,60]
[334221928,1722844194303,-500.0,0.00044383,60]
[334221929,1722844194343,-1551.67,0.00044383,60]
[334221930,1722844194385,-2982.8,0.00044383,60]
[334221931,1722844194427,-724.03,0.00044383,60]
[334221932,1722844194468,-500.0,0.00044383,60]
[334221933,1722844194507,-5643.31,0.00044383,60]
[334221934,1722844194546,-1490.68,0.00044383,60]
[334221935,1722844194592,-2411.96,0.00044383,60]
[334221936,1722844194644,-1691.64,0.00044383,60]
[334221937,1722844194683,-571.4,0.00044383,60]
[334221938,1722844194721,-5579.05,0.00044383,60]
[334221939,1722844194760,-1240.95,0.00044383,60]
[334221940,1722844194800,-500.0,0.00044383,60]
[334221941,1722844194839,-500.0,0.00044383,60]
[334221942,1722844194879,-500.0,0.00044383,60]
[334221943,1722844194918,-3652.18,0.00044383,60]
[334221944,1722844194957,-5016.19,0.00044383,60]
[334221945,1722844194998,-500.0,0.00044383,60]
[334221946,1722844195037,-500.0,0.00044383,60]
[334221947,1722844195078,-500.0,0.00044383,60]
[334221948,1722844195139,-7025.34,0.00044383,60]
[334221949,1722844195180,-500.0,0.00044383,60]
[334221950,1722844195220,-579.57,0.00044383,60]
[334221951,1722844195258,-1406.22,0.00044383,60]
[334221952,1722844195296,-500.0,0.00044383,60]
[334221953,1722844195332,-3868.7,0.00044383,60]
[334221954,1722844195370,-735.23,0.00044383,60]
[334221955,1722844195407,-500.0,0.00044383,60]
[334221956,1722844195444,-500.0,0.00044383,60]
[334221957,1722844195481,-500.0,0.00044383,60]
[334221958,1722844195520,-2230.38,0.00044383,60]
[334221959,1722844195559,-825.84,0.00044383,60]
[334221960,1722844195821,-4726.84,0.00044383,60]
[334221961,1722844195864,-500.0,0.00044383,60]
[334221962,1722844195910,-8538.86,0.00044383,60]
[334221963,1722844195953,-7586.45,0.00044383,60]
[334221964,1722844195996,-824.94,0.00044383,60]
[334221965,1722844196039,-3040.72,0.00044383,60]
[334221966,1722844196081,-2016.71,0.00044383,60]
[334221967,1722844196141,-2769.02,0.00044383,60]
[334221968,1722844196186,-1618.35,0.00044383,60]
[334221969,1722844196228,-4162.2,0.00044383,60]
[334221970,1722844196269,-500.0,0.00044383,60]
[334221971,1722844196308,-500.0,0.00044383,60]
[334221972,1722844196348,-3492.83,0.00044383,60]
[334221973,1722844196392,-504.11317824,0.00044383,60]
[334221974,1722844196436,-1709.17,0.00044383,60]
[334221975,1722844196482,-2868.0,0.00044383,60]
[334221976,1722844196530,-1047.93,0.00044383,60]
[334221977,1722844196573,-500.0,0.00044383,60]
[334221978,1722844196621,-7310.49,0.00044383,60]
[334221979,1722844196665,-500.0,0.00044383,60]
[334221980,1722844196704,-500.0,0.00044383,60]
[334221981,1722844196744,-4368.58,0.00044383,60]
[334221982,1722844196786,-3390.96,0.00044383,60]
[334221983,1722844196827,-500.0,0.00044383,60]